bitfinex/quotes_ETHUSD_20251215
["timestamp","ask_amount","ask_price","bid_price","bid_amount"]
[1765760979291,0.47,3069.6,3069.3,6.51614374]
[1765760981689,0.001,3069.7,3069.4,0.58047529]
[1765760982710,0.471,3069.7,3069.4,0.58047529]
[1765760983074,0.001,3069.7,3069.4,0.58047529]
[1765760983566,0.001,3069.7,3069.6,0.67647529]
[1765760984187,0.001,3069.7,3069.6,1.08197929]
[1765760984577,0.001,3069.7,3069.6,1.21055682]
[1765760985690,0.001,3069.7,3069.6,4.46831027]
[1765760989092,0.001,3069.7,3069.6,4.98631027]
[1765760989294,0.001,3069.7,3069.6,6.53768098]
[1765760989492,0.001,3069.7,3069.6,6.50510345]
[1765760991797,0.001,3069.8,3069.7,20.962346]
[1765760992091,0.001,3069.8,3069.7,24.99246861]
[1765760992293,0.001,3069.8,3069.7,8.89115061]
[1765760992499,0.001,3069.8,3069.7,9.78361275]
[1765760992798,0.001,3069.8,3069.7,22.03369575]
[1765760993165,0.001,3069.8,3069.7,17.70902975]
[1765760993369,0.001,3069.8,3069.7,17.16552975]
[1765760994099,0.001,3069.8,3069.7,16.43712373]
[1765760994494,0.001,3069.8,3069.7,8.15561675]
[1765760994881,0.001,3069.8,3069.7,9.21513175]
[1765760995402,0.001,3069.8,3069.7,8.65253875]
[1765760995598,0.001,3069.8,3069.7,5.23208875]
[1765760995907,0.001,3069.8,3069.7,4.24610946]
[1765760996205,0.001,3069.8,3069.7,5.13608875]
[1765760996702,0.4641,3069.8,3069.7,3.25764732]
[1765760996902,0.4641,3069.8,3069.7,3.83812261]
[1765760997074,0.4641,3069.8,3069.7,4.24362661]
[1765760997780,0.9218,3069.8,3069.7,4.24362661]
[1765761001306,0.001,3069.8,3069.7,4.33962661]
[1765761001482,0.001,3069.8,3069.7,5.13214109]
[1765761001680,0.001,3069.8,3069.7,5.09956462]
[1765761003175,0.001,3069.8,3069.7,5.22814109]
[1765761003379,0.001,3069.8,3069.7,5.09956462]
[1765761003807,0.001,3069.8,3069.7,5.19556462]
[1765761004574,0.001,3069.8,3069.7,5.09956462]
[1765761004785,0.001,3069.8,3069.7,5.19556462]
[1765761005282,0.001,3069.8,3069.7,17.42384909]
[1765761005483,0.001,3069.8,3069.7,17.39127262]
[1765761008114,0.001,3069.8,3069.7,15.13742262]
[1765761008317,0.001,3069.8,3069.7,14.20392262]
[1765761009323,0.001,3069.8,3069.7,7.90623262]
[1765761010513,0.001,3069.8,3069.7,8.00223262]
[1765761012089,0.001,3069.8,3069.7,39.40781501]
[1765761012308,0.001,3069.8,3069.7,35.99982562]
[1765761012491,0.001,3069.8,3069.7,23.60221162]
[1765761012808,0.001,3069.8,3069.7,23.38441762]
[1765761013008,0.001,3069.8,3069.7,9.03556462]
[1765761013313,0.001,3069.8,3069.7,26.43011762]
[1765761013609,0.001,3069.8,3069.7,32.3848392]
[1765761014208,0.001,3069.8,3069.7,34.1658392]
[1765761014511,0.001,3069.8,3069.7,31.4064132]
[1765761014695,0.001,3070.1,3070.0,0.405504]
[1765761015008,0.001,3070.1,3070.0,0.501504]
[1765761015384,0.001,3070.1,3070.0,0.597504]
[1765761015782,0.001,3070.1,3070.0,8.78164228]
[1765761015984,0.001,3071.0,3070.7,0.98597929]
[1765761015985,0.001,3070.9,3070.7,0.98597929]
[1765761016215,0.001,3070.9,3070.8,1.22813889]
[1765761016511,0.001,3070.9,3070.8,1.19557409]
[1765761017884,0.9099,3070.9,3070.8,4.93652977]
[1765761019187,0.4522,3070.9,3070.8,4.93652977]
[1765761020723,0.001,3070.9,3070.8,5.03252977]
[1765761022146,0.001,3071.3,3071.0,0.096]
[1765761022296,0.001,3071.3,3071.2,7.03670087]
[1765761022623,0.001,3071.3,3071.2,4.24203555]
[1765761022806,0.4522,3071.3,3071.2,4.24203555]
[1765761023006,0.9099,3071.3,3071.2,4.24203555]
[1765761028930,0.9099,3071.3,3070.9,5.95472158]
[1765761028931,0.9099,3071.3,3070.9,0.405504]
[1765761029118,0.9099,3071.3,3070.9,0.98597929]
[1765761029119,0.4925,3071.0,3070.9,0.98597929]
[1765761029436,0.4925,3071.0,3070.9,5.5657672]
[1765761029631,0.9654,3071.0,3070.9,5.5657672]
[1765761031029,0.9654,3071.0,3070.9,8.82214155]
[1765761033254,0.9654,3071.0,3070.9,8.8219852]
[1765761035956,0.9654,3071.0,3070.9,3.83684964]
[1765761036650,0.9654,3071.0,3070.8,3.25845149]
[1765761036850,1.1781,3070.9,3070.8,3.25845149]
[1765761037052,1.1781,3070.9,3070.8,3.83892678]
[1765761038259,0.6832,3070.9,3070.8,8.41855834]
[1765761038455,1.1781,3070.9,3070.8,9.9915788]
[1765761038829,1.1781,3070.9,3070.8,3.83892678]
[1765761041832,1.6951,3070.9,3070.8,3.83892678]
[1765761043232,1.6951,3070.9,3070.8,0.002]
[1765761043535,0.1983,3070.9,3070.8,3.25848039]
[1765761043736,0.001,3071.1,3070.9,0.58047529]
[1765761044141,0.4849,3071.0,3070.9,0.58047529]
[1765761045050,0.9798,3071.0,3070.9,3.83684964]
[1765761048264,0.4849,3071.0,3070.9,3.83684964]
[1765761048872,0.001,3071.1,3070.9,5.1003458]
[1765761050862,0.001,3071.1,3070.9,5.0043458]
[1765761051069,0.4959,3071.1,3070.9,5.0043458]
[1765761051464,0.4849,3071.0,3070.9,5.0043458]
[1765761051672,0.4849,3071.0,3070.9,8.4164812]
[1765761051971,0.9798,3071.0,3070.9,3.83684964]
[1765761052144,0.001,3071.1,3070.9,8.5144812]
[1765761052350,0.001,3071.1,3070.9,3.93484964]
[1765761052549,0.4959,3071.1,3071.0,5.16010685]
[1765761052751,0.4849,3071.0,3070.9,0.002]
[1765761053151,0.9798,3071.0,3070.9,0.002]
[1765761053349,0.9798,3071.0,3070.5,3.25675768]
[1765761053560,0.6932,3070.9,3070.3,3.25698995]
[1765761053748,0.4849,3070.4,3070.3,3.25698995]
[1765761053950,1.0019,3070.4,3070.3,3.25698995]
[1765761054170,1.4968,3070.4,3070.3,3.25698995]
[1765761054489,1.4968,3070.4,3069.8,0.405504]
[1765761054681,0.1896,3070.2,3069.8,2.37033902]
[1765761055059,0.6845,3070.2,3069.8,2.37033902]
[1765761056579,0.677,3069.9,3069.8,3.83801649]
[1765761057372,0.482,3069.9,3069.8,3.83801649]
[1765761057579,0.517,3070.2,3069.8,7.55195769]
[1765761058671,0.976,3070.2,3069.8,7.55195769]
[1765761059377,0.459,3070.2,3069.8,7.55195769]
[1765761059782,0.459,3070.2,3069.8,7.55395769]
[1765761060084,0.1983,3070.9,3070.1,1.03687529]
[1765761060302,0.4807,3070.2,3070.1,0.58047529]
[1765761060453,0.4807,3070.2,3069.8,0.58247529]
[1765761060654,0.6757,3069.9,3069.8,0.58247529]
[1765761061070,1.1347,3069.9,3069.8,0.58247529]
[1765761061276,0.4807,3069.9,3069.8,0.98797929]
[1765761061481,0.4807,3069.9,3069.8,2.0642756]
[1765761061895,0.517,3070.4,3069.8,2.5206756]
[1765761062495,0.6757,3069.9,3069.8,4.24552049]
[1765761062886,0.459,3070.3,3069.8,7.50306169]
[1765761063504,0.4807,3069.9,3069.8,4.24552049]
[1765761064607,0.6757,3069.9,3069.8,3.84001649]
[1765761064782,1.1347,3069.9,3069.8,3.84001649]
[1765761067508,1.6517,3069.9,3069.8,3.84001649]
[1765761068407,1.6517,3069.9,3069.8,0.002]
[1765761068704,1.81687,3069.9,3069.8,0.58247529]
[1765761068908,1.29987,3069.9,3069.8,0.58247529]
[1765761069140,0.4807,3069.9,3069.8,0.58247529]
[1765761069318,0.459,3070.2,3069.8,0.58247529]
[1765761069657,0.1983,3070.9,3069.8,0.58247529]
[1765761069938,0.976,3070.8,3069.8,0.58247529]
[1765761070140,0.459,3070.8,3070.1,0.98597929]
[1765761070644,0.459,3070.8,3070.3,0.98597929]
[1765761070819,0.1983,3070.9,3070.3,0.98597929]
[1765761071145,0.001,3071.1,3070.3,1.47387929]
[1765761071503,0.001,3071.1,3070.5,0.405504]
[1765761071904,0.001,3071.1,3070.5,0.98597929]
[1765761072528,0.001,3071.1,3071.0,0.4564]
[1765761072735,0.001,3071.1,3070.9,0.58047529]
[1765761073334,0.001,3071.1,3071.0,0.861904]
[1765761073506,0.001,3071.1,3071.0,3.32123098]
[1765761073836,0.001,3071.1,3071.0,25.49682698]
[1765761074134,0.001,3071.1,3071.0,23.72724298]
[1765761074306,0.001,3072.2,3071.3,0.405504]
[1765761074506,0.001,3072.2,3072.1,1.60907929]
[1765761074837,0.001,3072.2,3072.1,3.83557766]
[1765761075012,0.9407,3072.2,3072.1,3.83557766]
[1765761075424,0.4817,3072.2,3072.1,3.83557766]
[1765761076615,0.001,3072.2,3072.1,3.83557766]
[1765761076823,0.001,3072.2,3072.1,4.29197766]
[1765761077418,0.001,3072.2,3072.1,3.83557766]
[1765761078221,0.001,3072.2,3072.1,5.4065623]
[1765761078722,0.001,3072.2,3072.1,5.8944623]
[1765761080650,0.001,3072.2,3072.1,6.02470561]
[1765761082547,0.001,3072.2,3072.1,12.58524861]
[1765761083127,0.001,3072.2,3072.1,6.02470561]
[1765761083449,0.001,3072.2,3072.1,23.50660461]
[1765761083755,0.001,3072.3,3072.2,21.00888529]
[1765761084047,0.001,3072.4,3072.3,37.2102557]
[1765761084237,0.001,3073.4,3072.4,0.98597929]
[1765761084439,0.001,3073.4,3072.5,16.472679]
[1765761084640,0.001,3073.4,3072.6,0.98597929]
[1765761084939,0.001,3073.4,3073.3,7.7666557]
[1765761085140,0.001,3073.4,3073.3,9.06032127]
[1765761085346,0.001,3073.4,3073.3,12.80205265]
[1765761085528,0.001,3073.4,3073.3,12.93224297]
[1765761086152,0.001,3073.8,3073.6,0.405504]
[1765761086450,0.001,3073.8,3073.6,1.63540722]
[1765761086655,0.001,3073.8,3073.6,2.15240722]
[1765761087022,0.001,3073.8,3073.6,2.64160722]
[1765761087549,0.001,3073.8,3073.6,5.89512101]
[1765761088943,0.001,3073.8,3073.6,5.40592101]
[1765761089340,0.001,3073.8,3073.6,14.95652001]
[1765761091379,0.001,3074.7,3073.7,1.04917529]
[1765761091524,0.001,3074.7,3074.6,4.23843489]
[1765761091721,0.001,3074.7,3074.6,4.75543489]
[1765761091959,0.4532,3074.7,3074.6,4.75543489]
[1765761092260,0.4532,3074.7,3074.6,3.83293089]
[1765761092440,0.4532,3074.7,3074.6,4.23843489]
[1765761092635,0.001,3074.7,3074.6,4.23843489]
[1765761093028,0.4532,3074.7,3074.6,4.23843489]
[1765761093228,0.9443,3074.7,3074.6,4.23843489]
[1765761094663,0.9443,3074.7,3074.6,3.83293089]
[1765761100751,0.9443,3074.7,3074.0,0.1301721]
[1765761100936,0.4911,3074.6,3073.6,0.9674]
[1765761101141,0.4911,3074.6,3073.8,0.405504]
[1765761101560,0.4522,3073.9,3073.8,0.922504]
[1765761101730,0.4522,3073.9,3073.8,0.405504]
[1765761102255,0.4522,3073.9,3073.8,4.23928139]
[1765761103368,0.6418,3073.9,3073.8,3.2533021]
[1765761103669,1.1329,3073.9,3073.8,3.83377739]
[1765761105970,1.1329,3073.9,3073.2,0.4911]
[1765761106270,0.4522,3073.3,3072.7,9.76340025]
[1765761106456,0.4522,3073.3,3072.8,0.99301003]
[1765761106665,6.69599513,3073.9,3072.7,3.25446675]
[1765761106666,0.6418,3072.8,3072.7,3.25446675]
[1765761107045,1.1329,3072.8,3072.5,0.58047529]
[1765761107250,1.1329,3072.8,3072.6,0.405504]
[1765761107577,1.1329,3072.8,3072.6,0.74955484]
[1765761107773,1.1329,3072.8,3072.7,0.405504]
[1765761108082,0.6418,3072.8,3072.7,0.405504]
[1765761110458,0.517,3073.4,3072.9,0.405504]
[1765761110683,0.4911,3073.3,3072.8,0.58047529]
[1765761110870,0.6418,3072.9,3072.8,0.58047529]
[1765761111373,1.1329,3072.9,3072.8,0.58047529]
[1765761112382,0.4911,3073.7,3073.1,0.98597929]
[1765761112562,0.4911,3073.7,3073.1,0.58047529]
[1765761112765,0.4522,3073.2,3073.1,0.58047529]
[1765761113397,0.9433,3073.2,3073.1,0.58047529]
[1765761113764,0.4522,3073.2,3073.1,0.58047529]
[1765761113998,0.9433,3073.2,3073.1,0.58047529]
[1765761114280,0.9433,3073.2,3073.1,3.83451843]
[1765761114464,0.4522,3073.2,3073.1,3.83451843]
[1765761114664,0.9433,3073.2,3073.1,3.83451843]
[1765761116180,0.4522,3073.2,3073.1,3.83451843]
[1765761116379,0.9433,3073.2,3073.1,3.83451843]
[1765761118152,0.9433,3073.2,3073.1,0.58047529]
[1765761118364,0.9433,3073.2,3073.1,3.83451843]
[1765761122883,0.4968,3073.7,3073.2,0.58047529]
[1765761123072,0.1896,3073.9,3073.4,0.58047529]
[1765761123280,0.1896,3073.9,3073.1,11.39410482]
[1765761123281,1.2034,3073.9,3073.6,4.57469664]
[1765761123590,0.001,3074.0,3073.7,0.58047529]
[1765761124392,0.001,3074.0,3073.9,0.4614]
[1765761124565,0.001,3074.0,3073.9,5.61657193]
[1765761124766,0.001,3074.0,3073.9,6.48357593]
[1765761124963,0.001,3074.0,3073.9,9.73677219]
[1765761125443,0.001,3074.0,3073.9,5.16207555]
[1765761125693,0.001,3074.0,3073.9,6.05516625]
[1765761126603,0.001,3074.0,3073.9,5.59366625]
[1765761126899,0.001,3074.0,3073.9,6.05516625]
[1765761130175,0.001,3074.0,3073.9,5.59366625]
[1765761130478,0.4621,3074.0,3073.9,4.23917555]
[1765761130890,0.001,3074.0,3073.9,4.23917555]
[1765761131408,0.001,3074.0,3073.9,4.70057555]
[1765761131610,0.001,3074.0,3073.9,5.16207555]
[1765761132308,0.001,3074.0,3073.9,5.19460751]
[1765761132476,0.001,3074.0,3073.9,6.66100486]
[1765761132678,0.001,3074.0,3073.9,6.6284729]
[1765761135134,0.001,3074.0,3073.9,5.7055729]
[1765761135282,0.001,3074.0,3073.9,6.1669729]
[1765761137509,0.001,3074.0,3073.9,12.10779406]
[1765761138719,0.001,3074.0,3073.9,12.10979406]
[1765761142190,0.001,3074.0,3073.9,12.57129406]
[1765761145571,0.001,3074.0,3073.9,11.20006992]
[1765761145731,0.001,3074.0,3073.9,10.73856992]
[1765761148912,0.001,3074.0,3073.9,11.22626992]
[1765761150335,0.001,3074.0,3073.9,10.73856992]
[1765761150938,0.001,3074.0,3073.9,10.73836016]
[1765761152837,0.001,3074.0,3073.9,11.22606016]
[1765761153731,0.001,3074.0,3073.9,10.73836016]
[1765761153932,0.001,3074.0,3073.9,15.79544742]
[1765761154130,0.001,3074.0,3073.9,11.35622802]
[1765761154430,0.001,3074.0,3073.9,10.86852802]
[1765761157420,0.001,3074.0,3073.9,11.35622802]
[1765761158447,0.001,3074.0,3073.9,10.86852802]
[1765761159348,0.001,3074.0,3073.9,10.27696016]
[1765761159521,0.001,3074.0,3073.9,10.77686016]
[1765761159717,0.001,3074.0,3073.9,15.83394742]
[1765761160631,0.001,3074.0,3073.9,11.26456016]
[1765761162750,0.001,3074.7,3074.0,0.98597929]
[1765761162926,0.4986,3074.7,3074.5,0.58047529]
[1765761163325,0.4687,3074.6,3074.5,0.58047529]
[1765761163744,0.9663,3074.6,3074.5,3.83303668]
[1765761167234,0.4687,3074.6,3074.5,3.83303668]
[1765761168345,0.4687,3074.6,3074.5,4.54211208]
[1765761168550,0.4697,3074.6,3074.5,4.54211208]
[1765761169847,0.4697,3074.6,3074.5,5.44751608]
[1765761169848,0.001,3074.6,3074.5,5.44751608]
[1765761172573,0.001,3074.6,3074.5,4.94761608]
[1765761172874,0.4697,3074.6,3074.5,4.94761608]
[1765761173569,0.9673,3074.6,3074.5,4.94761608]
[1765761173774,0.9673,3074.6,3074.5,4.23854068]
[1765761175775,0.9673,3074.6,3074.5,3.83303668]
[1765761181640,0.9673,3074.6,3074.5,8.40242394]
[1765761182898,0.4697,3074.6,3074.5,8.40242394]
[1765761183396,0.4697,3074.6,3074.5,3.83303668]
[1765761183594,0.949,3074.6,3074.5,3.83303668]
[1765761184391,0.001,3074.6,3074.5,6.1972179]
[1765761184790,0.001,3074.6,3074.5,10.76660516]
[1765761184984,0.001,3074.6,3074.5,10.8967654]
[1765761185535,0.001,3074.6,3074.5,11.3870654]
[1765761186080,0.001,3075.0,3074.9,9.71924981]
[1765761186400,0.001,3075.0,3074.9,12.11292632]
[1765761187405,0.001,3075.0,3074.9,10.92580751]
[1765761187891,0.001,3075.0,3074.9,15.49519477]
[1765761188092,0.001,3075.0,3074.9,10.92580751]
[1765761188484,0.001,3075.0,3074.9,15.49519477]
[1765761188885,0.001,3075.0,3074.9,20.06162131]
[1765761189800,0.001,3075.0,3074.9,10.43254679]
[1765761190871,0.001,3075.0,3074.9,9.96464679]
[1765761190872,0.4795,3075.0,3074.9,9.96464679]
[1765761191209,0.9588,3075.0,3074.9,8.39904011]
[1765761191704,0.9588,3075.0,3074.9,7.81856482]
[1765761192012,0.9588,3075.0,3074.9,8.39904011]
[1765761192994,0.4795,3075.0,3074.9,8.39904011]
[1765761194106,0.001,3075.0,3074.9,9.76274411]
[1765761194305,0.001,3075.0,3074.9,11.05344398]
[1765761195895,0.001,3075.0,3074.9,16.11017052]
[1765761196304,0.001,3075.0,3074.9,11.54374398]
[1765761197485,0.001,3075.0,3074.9,11.54415084]
[1765761198007,0.001,3075.0,3074.9,11.05385084]
[1765761198710,0.001,3075.0,3074.9,10.58595084]
[1765761198908,0.001,3075.0,3074.9,11.54415084]
[1765761199383,0.001,3075.0,3074.9,11.05385084]
[1765761199916,0.001,3075.0,3074.9,11.54415084]
[1765761203114,0.001,3075.0,3074.9,11.05385084]
[1765761204391,0.001,3075.0,3074.9,11.54415084]
[1765761208114,0.001,3075.0,3074.9,16.08458424]
[1765761208316,0.001,3075.3,3075.0,1.43817929]
[1765761208616,0.001,3075.3,3075.2,5.14730869]
[1765761209111,0.4916,3075.3,3075.2,5.14730869]
[1765761209488,0.4916,3075.3,3075.2,8.8737297]
[1765761210723,0.9799,3075.3,3075.2,9.2792337]
[1765761211310,0.4916,3075.3,3075.2,9.2792337]
[1765761211500,0.4916,3075.3,3075.2,10.02801245]
[1765761212103,0.001,3075.3,3075.2,10.02801245]
[1765761213730,0.001,3075.3,3075.2,15.07184585]
[1765761214018,0.001,3075.3,3075.2,15.52994585]
[1765761215333,0.001,3075.3,3075.2,15.07184585]
[1765761215494,0.001,3075.3,3075.2,15.52994585]
[1765761216015,0.001,3075.3,3075.2,10.96311245]
[1765761216426,0.001,3075.3,3075.2,15.52994585]
[1765761216609,0.001,3075.3,3075.2,10.96311245]
[1765761216817,0.001,3075.3,3075.2,15.52994585]
[1765761226743,0.001,3075.3,3075.2,15.07184585]
[1765761227942,0.001,3075.3,3075.2,15.06931929]
[1765761229640,0.001,3075.3,3075.2,15.52741929]
[1765761230731,0.001,3075.9,3075.3,0.98597929]
[1765761231025,0.001,3075.9,3075.8,0.98597929]
[1765761231399,0.9721,3075.9,3075.8,0.98597929]
[1765761231597,0.9721,3075.9,3075.8,4.23716597]
[1765761231804,0.001,3075.9,3075.8,5.20926597]
[1765761232026,0.001,3075.9,3075.8,6.9888794]
[1765761232333,0.4838,3075.9,3075.8,6.5118794]
[1765761232525,0.9721,3075.9,3075.8,6.5118794]
[1765761234536,0.4838,3075.9,3075.8,6.5118794]
[1765761235038,0.001,3075.9,3075.8,6.9888794]
[1765761235207,0.9721,3075.9,3075.8,6.5118794]
[1765761235407,0.4838,3075.9,3075.8,5.20926597]
[1765761235606,0.9721,3075.9,3075.8,5.20926597]
[1765761238336,0.9721,3075.9,3075.8,9.77483609]
[1765761242725,0.4838,3075.9,3075.8,9.77483609]
[1765761243126,0.9779,3075.9,3075.8,9.77483609]
[1765761243741,0.001,3075.9,3075.8,11.89707946]
[1765761243926,0.4974,3075.9,3075.8,11.40257946]
[1765761244126,0.4974,3075.9,3075.8,9.77483609]
[1765761244527,0.9915,3075.9,3075.8,9.77483609]
[1765761247339,0.4974,3075.9,3075.8,9.77483609]
[1765761247917,0.9915,3075.9,3075.8,9.77483609]
[1765761250150,0.001,3075.9,3075.8,11.89707937]
[1765761250358,0.1848,3077.0,3076.0,0.405504]
[1765761250359,0.4941,3076.8,3076.0,0.405504]
[1765761250651,0.4941,3076.8,3076.2,6.04604941]
[1765761251236,0.1848,3077.0,3076.2,10.61161953]
[1765761251533,0.9915,3076.3,3076.2,4.78680759]
[1765761251832,0.9915,3076.3,3076.2,9.35237771]
[1765761253126,0.9915,3076.3,3076.2,10.32803347]
[1765761253327,0.9915,3076.3,3076.2,9.77796909]
[1765761253529,0.4974,3076.3,3076.2,9.77796909]
[1765761254238,0.9915,3076.3,3076.2,9.77796909]
[1765761255152,0.4974,3076.3,3076.2,9.77796909]
[1765761256455,0.9915,3076.3,3076.2,9.77796909]
[1765761257434,0.001,3076.3,3076.2,11.08085383]
[1765761257640,0.001,3076.3,3076.2,11.57535383]
[1765761257948,0.4974,3076.3,3076.2,11.08085383]
[1765761258862,0.001,3076.3,3076.2,11.08085383]
[1765761259554,0.4974,3076.3,3076.2,15.64243873]
[1765761262943,0.9915,3076.3,3076.2,15.64243873]
[1765761265268,0.4974,3076.3,3076.2,15.64243873]
[1765761265759,0.4974,3076.3,3076.2,3.83123921]
[1765761265760,0.9915,3076.3,3076.2,3.83123921]
[1765761265973,0.9915,3076.3,3076.2,8.39644005]
[1765761268131,0.9915,3076.3,3076.2,12.96164089]
[1765761268336,0.9641,3076.3,3076.2,12.96164089]
[1765761268766,0.9641,3076.3,3076.2,8.39644005]
[1765761268961,0.9641,3076.3,3076.2,12.96164089]
[1765761269267,0.9641,3076.3,3076.2,8.39644005]
[1765761270253,0.001,3076.3,3076.2,8.39644005]
[1765761270452,0.9716,3076.3,3076.2,8.39644005]
[1765761277146,0.4905,3076.3,3076.2,8.39644005]
[1765761277547,0.9716,3076.3,3076.2,8.39644005]
[1765761277846,0.4905,3076.3,3076.2,8.39644005]
[1765761278075,0.001,3076.3,3076.2,9.26174405]
[1765761278380,0.001,3076.3,3076.2,10.61037434]
[1765761278587,0.4905,3076.3,3076.2,10.63167434]
[1765761279683,0.9716,3076.3,3076.2,9.28304405]
[1765761281580,0.9716,3076.3,3076.0,3.25295888]
[1765761281751,0.2081,3076.1,3076.0,3.83343417]
[1765761281952,0.2081,3076.1,3076.0,8.39863501]
[1765761282147,0.4821,3076.3,3076.1,0.58047529]
[1765761282681,0.4895,3076.2,3076.1,0.58047529]
[1765761283049,0.4895,3076.2,3076.1,8.80204973]
[1765761283253,0.001,3076.3,3076.1,10.46735059]
[1765761283450,0.001,3076.3,3076.2,0.865304]
[1765761285784,0.001,3076.3,3076.2,4.69654321]
[1765761286688,0.001,3076.3,3076.2,5.16814321]
[1765761290291,0.001,3076.3,3076.2,4.69654321]
[1765761290485,0.4905,3076.3,3076.2,6.62373475]
[1765761290989,0.001,3076.3,3076.2,6.62373475]
[1765761291774,0.001,3076.3,3076.2,7.10483475]
[1765761292293,0.001,3076.3,3076.2,7.57643475]
[1765761292992,0.001,3076.3,3076.2,7.10483475]
[1765761293160,0.001,3076.3,3076.2,7.57643475]
[1765761293875,0.001,3076.3,3076.2,7.10483475]
[1765761296805,0.001,3076.3,3076.2,7.57553475]
[1765761300134,0.4647,3076.3,3076.2,6.64503475]
[1765761300408,0.001,3076.3,3076.2,7.59073475]
[1765761300584,0.001,3077.2,3076.3,0.98597929]
[1765761300909,0.001,3077.2,3076.3,0.92709042]
[1765761300910,0.4593,3077.1,3076.3,0.92709042]
[1765761301105,0.4593,3077.1,3076.4,0.405504]
[1765761301298,0.4593,3077.1,3076.4,0.864804]
[1765761301493,0.4593,3077.1,3076.6,0.405504]
[1765761302009,0.4593,3077.1,3077.0,5.14567613]
[1765761302409,0.923,3077.1,3077.0,5.14567613]
[1765761302711,0.923,3077.1,3077.0,4.56520084]
[1765761303809,0.923,3077.1,3077.0,7.81511959]
[1765761304499,0.923,3077.1,3076.7,3.2501415]
[1765761304813,0.001,3077.2,3076.2,0.9757097]
[1765761304814,0.658902,3076.8,3076.2,0.9757097]
[1765761305012,0.4617,3076.3,3076.2,4.22647362]
[1765761305318,0.4617,3076.3,3076.2,3.83123921]
[1765761305477,0.921,3076.3,3076.2,3.83123921]
[1765761306482,0.921,3076.3,3076.2,0.58047529]
[1765761306682,0.921,3076.3,3076.0,0.002]
[1765761306683,4.68666536,3076.3,3076.0,0.002]
[1765761306917,0.4637,3076.1,3076.0,0.002]
[1765761307425,0.923,3076.1,3076.0,0.002]
[1765761308484,0.001,3076.3,3076.0,0.477]
[1765761308719,0.001,3076.3,3076.2,6.02655958]
[1765761308933,0.001,3076.3,3076.2,6.49725958]
[1765761309085,0.001,3076.3,3076.2,7.68586377]
[1765761310513,0.001,3076.3,3076.2,10.93662769]
[1765761311137,0.4647,3076.3,3076.2,5.4253474]
[1765761311706,0.4647,3076.3,3076.2,9.99092769]
[1765761311903,0.001,3076.3,3076.2,10.46592769]
[1765761312308,0.924,3076.3,3076.2,3.25076392]
[1765761312590,0.924,3076.3,3076.1,7.81644989]
[1765761312794,0.924,3076.3,3076.1,8.39692518]
[1765761312795,0.7222,3076.2,3076.1,8.39692518]
[1765761312992,0.7222,3076.2,3076.1,4.56558029]
[1765761315022,3.97298667,3076.2,3076.0,0.002]
[1765761315207,1.33140067,3076.1,3076.0,0.002]
[1765761316626,1.84640067,3076.1,3076.0,0.002]
[1765761316794,1.449002,3076.1,3076.0,0.002]
[1765761318023,4.6998716,3076.1,3076.0,0.002]
[1765761318411,0.934002,3076.1,3076.0,0.002]
[1765761318614,4.6998716,3076.1,3076.0,0.002]
[1765761320598,1.449002,3076.1,3076.0,0.002]
[1765761320799,1.40537902,3076.1,3076.0,0.002]
[1765761321025,1.449002,3076.1,3076.0,0.002]
[1765761321929,4.6998716,3076.1,3076.0,0.002]
[1765761322123,4.1848716,3076.1,3076.0,0.002]
[1765761322329,4.6998716,3076.1,3076.0,0.002]
[1765761326309,5.1053756,3076.1,3076.0,0.002]
[1765761326518,5.1053756,3076.1,3075.3,0.002]
[1765761326519,0.98597929,3076.0,3075.3,0.002]
[1765761326811,5.03766167,3075.4,3075.1,0.002]
[1765761327008,0.4598,3075.2,3075.1,0.002]
[1765761327636,4.87460866,3075.2,3075.1,0.002]
[1765761328237,4.88761066,3075.2,3075.1,0.002]
[1765761328429,5.77372203,3075.2,3075.1,0.002]
[1765761328736,6.17922603,3075.2,3075.1,0.002]
[1765761328924,30.42283103,3075.2,3075.1,0.002]
[1765761329129,6.17922603,3075.2,3075.1,0.002]
[1765761329331,6.69422603,3075.2,3075.1,0.002]
[1765761331641,6.17922603,3075.2,3075.1,0.002]
[1765761331813,6.69422603,3075.2,3075.1,0.002]
[1765761332222,6.69422603,3075.2,3074.8,0.002]
[1765761332223,1.72807929,3075.1,3074.8,0.002]
[1765761332443,1.043306,3074.9,3074.8,0.002]
[1765761332720,30.0,3074.8,3073.5,0.002]
[1765761333048,4.68596329,3074.6,3073.5,0.002]
[1765761333249,1.98529562,3074.6,3073.5,0.002]
[1765761333545,2.42268129,3074.6,3073.5,0.002]
[1765761334454,5.67513689,3074.6,3073.5,0.002]
[1765761335539,5.80537808,3074.6,3073.5,0.002]
[1765761335854,5.26963289,3074.6,3073.5,0.002]
[1765761339060,4.6891576,3074.6,3073.6,0.4807]
[1765761339355,5.4833069,3074.6,3073.6,0.4807]
[1765761344767,4.0596069,3074.6,3074.1,0.1667]
[1765761344943,4.2481576,3074.6,3074.1,0.1667]
[1765761345143,4.7253576,3074.6,3074.0,0.002]
[1765761346831,35.71133689,3074.6,3074.0,0.002]
[1765761347057,15.33296289,3074.6,3074.0,0.002]
[1765761347262,14.77622689,3074.6,3074.0,0.002]
[1765761347446,16.57918312,3074.6,3074.0,0.002]
[1765761348664,41.06654109,3074.6,3074.0,0.002]
[1765761348868,0.1917,3073.3,3072.9,0.002]
[1765761349083,0.516,3073.2,3072.9,0.4827]
[1765761349378,0.516,3073.1,3072.9,0.4827]
[1765761349880,0.516,3073.1,3073.0,0.4774]
[1765761350037,0.516,3073.1,3072.9,0.002]
[1765761350236,0.516,3073.1,3073.0,0.4774]